bitfinex-derivatives/quotes_SOLF0:USTF0_20241103
["timestamp","ask_amount","ask_price","bid_price","bid_amount"]
[1730667204860,3.26,162.66,162.56,2.6455]
[1730667205062,6.335,162.66,162.59,11.81474068]
[1730667205563,6.335,162.66,162.62,3.0755]
[1730667206657,3.26,162.66,162.59,11.81474068]
[1730667206865,3.26,162.66,162.57,11.81474068]
[1730667207562,3.26,162.66,162.56,1.3415]
[1730667207956,21.75,162.66,162.55,11.81474068]
[1730667208361,18.49,162.64,162.55,11.81474068]
[1730667208663,4.0675,162.63,162.55,11.81474068]
[1730667209064,4.0675,162.63,162.56,3.0768]
[1730667210361,3.0762,162.6,162.56,3.0768]
[1730667212260,3.0764,162.59,162.56,3.0768]
[1730667213568,3.0762,162.6,162.56,3.0768]
[1730667213768,21.73,162.61,162.52,18.90442355]
[1730667213958,3.24,162.61,162.52,18.90442355]
[1730667214161,3.24,162.61,162.51,2.7816]
[1730667214162,3.24,162.61,162.54,18.90442355]
[1730667215464,3.0755,162.63,162.59,3.0761]
[1730667215868,3.24,162.66,162.57,18.90442355]
[1730667216072,3.24,162.66,162.58,2.6706]
[1730667216374,3.24,162.66,162.61,3.0758]
[1730667216375,3.0752,162.65,162.61,3.0758]
[1730667216571,3.24,162.66,162.58,2.6706]
[1730667217164,3.24,162.66,162.6,3.0759]
[1730667217165,3.0754,162.64,162.6,3.0759]
[1730667219077,3.0754,162.64,162.61,3.0758]
[1730667222177,3.0754,162.64,162.6,3.0759]
[1730667222575,3.0754,162.64,162.58,2.6706]
[1730667222877,21.73,162.66,162.54,18.90442355]
[1730667223080,3.0764,162.59,162.51,21.55402355]
[1730667223670,3.0764,162.59,162.55,3.0769]
[1730667223871,3.24,162.61,162.51,21.55402355]
[1730667224075,3.24,162.61,162.58,3.0763]
[1730667224378,6.3153,162.64,162.55,18.90442355]
[1730667224581,3.24,162.65,162.59,3.0762]
[1730667225077,3.0756,162.63,162.59,3.0762]
[1730667226573,3.24,162.65,162.59,3.0762]
[1730667226874,3.24,162.65,162.51,2.6496]
[1730667226875,21.73,162.65,162.51,21.55402355]
[1730667227372,3.0766,162.58,162.54,3.077]
[1730667227577,3.0766,162.58,162.51,21.55402355]
[1730667227873,3.24,162.6,162.54,3.0772]
[1730667228076,3.077,162.55,162.51,1.3152]
[1730667228676,3.077,162.55,162.51,3.0778]
[1730667228892,3.0771,162.55,162.48,18.90442355]
[1730667229174,3.0771,162.55,162.5,3.0778]
[1730667229476,3.0771,162.55,162.5,14.89750675]
[1730667229675,3.0768,162.56,162.5,11.81970675]
[1730667229977,3.0768,162.56,162.52,3.0775]
[1730667230177,21.73,162.6,162.5,11.81970675]
[1730667231278,18.49,162.58,162.48,11.81970675]
[1730667231681,3.0774,162.53,162.49,3.078]
[1730667231867,3.24,162.55,162.48,11.81970675]
[1730667232269,3.0773,162.54,162.5,3.0778]
[1730667234581,21.73,162.55,162.46,2.7057]
[1730667234784,3.24,162.55,162.46,1.395]
[1730667235682,3.0777,162.52,162.48,3.0782]
[1730667236591,3.0774,162.53,162.49,3.0781]
[1730667236780,3.24,162.55,162.47,11.81970675]
[1730667236983,3.24,162.55,162.5,11.81970675]
[1730667237380,6.3171,162.55,162.51,3.0777]
[1730667238384,3.22,162.6,162.54,11.81970675]
[1730667238886,3.076,162.61,162.57,3.0766]
[1730667239082,3.076,162.61,162.54,11.81970675]
[1730667240178,3.076,162.61,162.56,3.0766]
[1730667242292,3.0763,162.59,162.55,3.0769]
[1730667242784,6.2957,162.62,162.58,3.0764]
[1730667243089,3.22,162.62,162.54,13.20120675]
[1730667243689,3.22,162.62,162.56,11.81970675]
[1730667243890,3.0756,162.63,162.56,11.81970675]
[1730667244081,3.0756,162.63,162.6,3.076]
[1730667244594,3.22,162.64,162.54,1.3815]
[1730667244785,3.22,162.64,162.58,11.81970675]
[1730667245375,3.22,162.64,162.61,3.0758]
[1730667246088,3.22,162.64,162.62,3.0756]
[1730667246690,3.22,162.64,162.61,3.0758]
[1730667248182,3.22,162.64,162.58,11.81970675]
[1730667248387,3.22,162.64,162.6,3.076]
[1730667248994,11.81970675,162.73,162.61,11.81970675]
[1730667249302,11.81970675,162.73,162.62,1.4027]
[1730667249303,1.06954276,162.72,162.62,1.4027]
[1730667249490,3.0747,162.68,162.64,3.0752]
[1730667249998,3.0747,162.68,162.62,1.4027]
[1730667250203,3.0747,162.67,162.62,1.4027]
[1730667250791,11.81970675,162.73,162.62,1.4027]
[1730667250999,3.22,162.72,162.63,13.19810675]
[1730667251200,3.0743,162.7,162.67,3.0747]
[1730667251404,3.22,162.72,162.63,13.19810675]
[1730667251915,3.0742,162.7,162.63,13.19810675]
[1730667253109,3.074,162.71,162.67,3.0747]
[1730667254100,3.22,162.72,162.66,11.81970675]
[1730667254411,3.22,162.73,162.66,11.81970675]
[1730667254608,3.0739,162.72,162.66,11.81970675]
[1730667254809,3.22,162.73,162.68,3.0744]
[1730667255713,3.0743,162.7,162.67,3.0747]
[1730667256106,3.22,162.73,162.64,11.81970675]
[1730667256517,3.0743,162.7,162.66,3.0748]
[1730667259414,3.0743,162.7,162.67,3.0747]
[1730667261906,3.0744,162.69,162.65,3.075]
[1730667262213,3.0744,162.69,162.64,11.81970675]
[1730667262214,3.22,162.73,162.64,11.81970675]
[1730667262717,3.22,162.73,162.63,1.3784]
[1730667262718,3.0742,162.7,162.66,11.81970675]
[1730667263117,3.22,162.73,162.66,11.81970675]
[1730667263308,3.074,162.71,162.68,3.0745]
[1730667263718,3.0739,162.72,162.68,3.0745]
[1730667264519,3.22,162.73,162.68,3.0745]
[1730667264721,3.074,162.71,162.68,3.0745]
[1730667267723,45.23036336,162.77,162.63,1.3784]
[1730667267922,45.23036336,162.77,162.7,11.81970675]
[1730667268229,3.0729,162.77,162.74,3.0734]
[1730667268413,3.0729,162.77,162.72,11.81970675]
[1730667268616,3.16,162.79,162.72,11.81970675]
[1730667268815,3.0728,162.78,162.74,3.0733]
[1730667269228,3.0728,162.78,162.64,1.53751592]
[1730667269229,18.49,162.74,162.65,1.53751592]
[1730667269524,18.49,162.67,162.56,11.81970675]
[1730667269717,3.077,162.56,162.54,1.53751592]
[1730667270020,3.16,162.57,162.49,1.53751592]
[1730667270226,3.16,162.57,162.48,14.89780675]
[1730667270424,3.16,162.57,162.51,11.81970675]
[1730667270425,6.2367,162.57,162.51,11.81970675]
[1730667270622,18.49,162.62,162.53,11.81970675]
[1730667270827,3.16,162.61,162.53,11.81970675]
[1730667271236,3.16,162.61,162.5,11.81970675]
[1730667272220,11.81970675,162.63,162.53,11.81970675]
[1730667272426,45.26503737,162.65,162.56,11.81970675]
[1730667272621,48.42503737,162.65,162.56,11.81970675]
[1730667273212,3.0754,162.64,162.56,14.89630675]
[1730667274430,3.0753,162.64,162.56,14.89630675]
[1730667274727,3.0753,162.64,162.56,11.81970675]
[1730667275125,66.91503737,162.65,162.56,11.81970675]
[1730667275321,3.0759,162.61,162.55,1.3819]
[1730667275628,66.91503737,162.65,162.55,1.3819]
[1730667275930,3.0761,162.6,162.55,1.3819]
[1730667276126,66.91503737,162.65,162.55,1.3819]
[1730667277132,3.076,162.61,162.55,4.4588]
[1730667277714,3.0761,162.6,162.55,4.4588]
[1730667279731,66.91503737,162.65,162.55,4.4588]
[1730667279926,30.30970675,162.63,162.54,2.7581]
[1730667280128,30.30970675,162.6,162.48,11.81970675]
[1730667280429,3.0772,162.55,162.5,4.3615]
[1730667281026,3.0772,162.55,162.5,1.2837]
[1730667281225,3.0772,162.55,162.51,3.0777]
[1730667281525,3.0772,162.55,162.5,1.2837]
[1730667281737,3.0772,162.54,162.5,4.3616]
[1730667282322,3.0774,162.53,162.48,3.0782]
[1730667282529,3.42,162.54,162.46,2.6495]
[1730667283835,3.0778,162.51,162.47,3.0784]
[1730667284028,3.42,162.54,162.46,2.6495]
[1730667285220,11.81970675,162.55,162.46,2.6495]
[1730667285420,3.44,162.57,162.48,11.81970675]
[1730667285636,3.44,162.59,162.48,11.81970675]
[1730667285933,3.0768,162.57,162.51,3.0777]
[1730667286933,3.0768,162.57,162.52,3.0776]
[1730667289023,3.0772,162.54,162.49,3.0781]
[1730667289234,11.81970675,162.58,162.46,2.6495]
[1730667289434,21.93,162.59,162.46,2.6495]
[1730667289628,3.0768,162.56,162.51,3.0776]
[1730667290941,3.0773,162.54,162.49,3.078]
[1730667291243,6.5173,162.54,162.49,3.078]
[1730667292136,6.5173,162.54,162.5,3.0779]
[1730667298443,3.44,162.54,162.46,2.6495]
[1730667299140,3.44,162.54,162.51,3.0778]
[1730667301542,3.44,162.54,162.46,2.6495]
[1730667301747,18.49,162.58,162.48,11.81970675]
[1730667302048,15.25970675,162.6,162.5,11.81970675]
[1730667302247,3.0763,162.59,162.51,1.3505]
[1730667302946,3.0763,162.59,162.53,3.0773]
[1730667303147,3.0763,162.59,162.51,1.3505]
[1730667304143,3.0763,162.59,162.48,11.81970675]
[1730667304351,3.0766,162.58,162.48,11.81970675]
[1730667304551,14.89630675,162.58,162.48,11.81970675]
[1730667304847,30.30970675,162.58,162.47,1.3046]
[1730667305047,3.0771,162.55,162.47,1.3046]
[1730667305247,3.58,162.55,162.47,1.3046]
[1730667305651,3.58,162.55,162.53,3.0773]
[1730667306964,3.58,162.58,162.5,11.81970675]
[1730667307147,18.49,162.62,162.53,11.81970675]
[1730667307352,3.58,162.62,162.54,2.6662]
[1730667307946,45.26503737,162.65,162.55,11.81970675]
[1730667308145,48.84503737,162.65,162.55,13.19400675]
[1730667308946,48.84503737,162.65,162.62,3.0755]
[1730667310548,48.84503737,162.65,162.57,11.81970675]
[1730667310549,45.26503737,162.65,162.63,3.0754]
[1730667310947,3.58,162.66,162.57,11.81970675]
[1730667311649,6.6549,162.66,162.57,11.81970675]
[1730667312251,6.6549,162.66,162.61,3.0757]
[1730667313255,3.0752,162.65,162.61,3.0757]
[1730667315364,22.07,162.66,162.6,3.076]
[1730667315365,3.0755,162.64,162.6,3.076]
[1730667315755,22.07,162.66,162.6,3.076]
[1730667315957,3.0754,162.64,162.6,3.076]
[1730667316557,22.07,162.66,162.58,3.0764]
[1730667316858,22.07,162.66,162.55,13.19400675]
[1730667317259,3.0756,162.63,162.59,3.0762]
[1730667319059,3.0756,162.63,162.55,13.19400675]
[1730667319060,22.07,162.66,162.55,13.19400675]
[1730667319353,22.07,162.67,162.58,11.81970675]
[1730667320158,25.1448,162.67,162.62,3.0755]
[1730667320367,25.1448,162.67,162.58,11.81970675]
[1730667321572,22.07,162.67,162.58,11.81970675]
[1730667321762,3.0749,162.66,162.58,11.81970675]
[1730667322153,22.07,162.67,162.58,11.81970675]
[1730667322357,3.0753,162.65,162.56,11.81970675]
[1730667322881,3.0753,162.65,162.61,3.0757]
[1730667325471,33.88970675,162.67,162.56,11.81970675]
[1730667326461,3.0757,162.63,162.59,3.0762]
[1730667326660,3.58,162.62,162.55,1.3743]
[1730667327974,6.6558,162.62,162.58,3.0764]
[1730667328170,3.58,162.62,162.55,1.3743]
[1730667328369,21.5651,162.66,162.62,3.0755]
[1730667328567,3.58,162.65,162.62,3.0755]
[1730667329166,6.6551,162.65,162.62,3.0755]
[1730667329367,6.6551,162.65,162.55,13.19400675]
[1730667329563,6.6551,162.65,162.61,3.0758]
[1730667334680,6.6551,162.65,162.62,3.0757]
[1730667336589,3.58,162.65,162.63,3.0754]
[1730667337076,21.5645,162.69,162.61,3.0758]
[1730667337278,22.01,162.69,162.62,2.7875]
[1730667337669,3.0747,162.68,162.64,3.0751]
[1730667338269,3.0747,162.68,162.65,3.0751]
[1730667338464,3.52,162.69,162.62,2.7875]
[1730667338767,3.52,162.74,162.7,3.0741]
[1730667340262,6.5935,162.74,162.7,3.0741]
[1730667341277,6.5935,162.74,162.71,3.074]
[1730667342387,6.5935,162.74,162.7,3.0741]
[1730667343979,3.0745,162.69,162.65,3.075]
[1730667344186,18.49,162.71,162.62,2.7875]
[1730667344685,11.81970675,162.74,162.64,11.81970675]
[1730667344985,3.52,162.71,162.64,11.81970675]
[1730667345189,3.52,162.71,162.66,3.0749]
[1730667345370,3.52,162.71,162.64,11.81970675]
[1730667346274,3.52,162.71,162.67,3.0746]
[1730667346576,3.52,162.71,162.62,14.60720675]
[1730667348189,22.01,162.71,162.62,2.7875]
[1730667349491,3.0745,162.69,162.65,3.0751]
[1730667349685,18.49,162.69,162.62,2.7875]
[1730667350383,21.5645,162.69,162.62,2.7875]
[1730667350783,18.49,162.69,162.64,3.0753]
[1730667350986,18.49,162.69,162.62,2.7875]
[1730667351291,30.30970675,162.67,162.6,1.4047]
[1730667351483,22.01,162.66,162.57,1.3778]
[1730667353295,3.0754,162.64,162.6,3.0759]
[1730667354493,3.0757,162.63,162.59,3.0762]
[1730667355290,18.49,162.64,162.56,1.3811]
[1730667355494,3.0758,162.62,162.57,3.0766]
[1730667355793,22.01,162.61,162.53,1.4011]
[1730667356100,3.0763,162.59,162.55,3.0769]
[1730667356297,3.0763,162.59,162.53,1.4011]
[1730667356298,22.01,162.61,162.53,1.4011]
[1730667356884,3.0765,162.58,162.53,1.4011]
[1730667357093,22.01,162.61,162.47,17.97520675]
[1730667357094,18.49,162.59,162.47,17.97520675]
[1730667357294,18.49,162.59,162.48,1.4011]
[1730667358298,11.81970675,162.6,162.48,1.4011]
[1730667358299,18.49,162.57,162.51,3.0777]
[1730667358594,22.01,162.56,162.51,3.0777]
[1730667359395,18.49,162.58,162.53,3.0772]
[1730667359601,45.27232915,162.61,162.48,1.4011]
[1730667359602,48.79232915,162.61,162.52,11.81970675]
[1730667359787,48.79232915,162.61,162.57,3.0765]
[1730667360292,48.79232915,162.61,162.52,11.81970675]
[1730667361397,48.79232915,162.61,162.57,3.0765]
[1730667361594,45.27232915,162.61,162.57,3.0765]
[1730667361795,45.27232915,162.61,162.5,3.52]
[1730667361796,25.0853,162.64,162.59,3.0762]
[1730667362095,22.01,162.64,162.54,11.81970675]
[1730667362304,22.01,162.64,162.55,2.7073]
[1730667362493,25.0853,162.64,162.55,2.7073]
[1730667362992,25.0853,162.64,162.59,3.0761]
[1730667363595,18.49,162.66,162.57,11.81970675]
[1730667363793,3.58,162.65,162.62,3.0755]
[1730667364986,3.58,162.65,162.59,3.0762]
[1730667365194,3.58,162.65,162.57,11.81970675]
[1730667365794,3.58,162.65,162.61,3.0758]
[1730667367797,3.58,162.65,162.62,3.0756]
[1730667371795,3.58,162.65,162.57,11.81970675]
[1730667372010,6.6553,162.65,162.61,3.0758]
[1730667373109,6.6553,162.65,162.55,7.6623]
[1730667373110,3.076,162.61,162.58,3.0763]
[1730667373315,33.88970675,162.65,162.55,2.7073]
[1730667373800,3.0757,162.62,162.58,3.0764]
[1730667374397,33.88970675,162.65,162.58,3.0764]
[1730667374597,3.0759,162.61,162.58,3.0764]
[1730667374813,33.88970675,162.65,162.59,3.0761]
[1730667375111,3.0756,162.63,162.59,3.0761]
[1730667377309,30.30970675,162.65,162.59,3.0761]
[1730667377497,3.58,162.66,162.56,11.81970675]
[1730667378301,6.655,162.66,162.56,11.81970675]
[1730667378902,3.58,162.66,162.64,3.0753]
[1730667379602,11.81970675,162.68,162.56,15.39970675]
[1730667379912,3.58,162.68,162.66,3.0747]
[1730667381308,25.1447,162.68,162.63,3.0753]
[1730667381512,36.96440675,162.68,162.6,1.3193]
[1730667383211,36.96440675,162.68,162.63,3.0753]
[1730667383714,3.58,162.68,162.62,3.0756]
[1730667383913,3.0745,162.69,162.6,1.3193]
[1730667384103,3.58,162.68,162.6,1.3193]
[1730667384912,3.58,162.68,162.66,3.0749]
[1730667385307,3.0745,162.69,162.66,3.0749]
[1730667385507,3.58,162.68,162.65,3.075]
[1730667386108,3.0738,162.72,162.67,3.0747]
[1730667386312,11.81970675,162.75,162.63,11.81970675]
[1730667386518,3.58,162.74,162.63,11.81970675]
[1730667386714,6.6534,162.74,162.7,3.074]
[1730667387213,6.6534,162.74,162.71,3.0739]
[1730667387715,3.58,162.73,162.71,3.0739]
[1730667387902,3.58,162.73,162.63,11.81970675]
[1730667388109,3.0739,162.72,162.69,3.0743]
[1730667388503,22.07,162.73,162.63,11.81970675]
[1730667388713,30.30970675,162.71,162.62,2.7865]
[1730667389218,3.0743,162.7,162.67,3.0747]
[1730667390721,3.0744,162.69,162.66,3.0749]
[1730667392627,3.0742,162.7,162.66,3.0749]
[1730667394014,3.0742,162.7,162.67,3.0747]
[1730667396226,30.30970675,162.71,162.62,2.7865]
[1730667396420,3.0745,162.68,162.65,3.075]
[1730667396616,33.74970675,162.68,162.6,1.3193]
[1730667397018,3.075,162.66,162.63,3.0755]
[1730667397514,7.55758821,162.65,162.63,3.0755]
[1730667398428,7.55758821,162.65,162.59,7.55758821]
[1730667398633,10.63278821,162.65,162.59,7.55758821]
[1730667399016,7.55758821,162.64,162.58,2.6238]
[1730667399215,3.44,162.63,162.6,3.0759]
[1730667399416,33.74195669,162.63,162.58,1.3423]
[1730667399620,3.076,162.61,162.56,3.0768]
[1730667399824,33.74195669,162.63,162.56,3.0768]
[1730667400427,3.0761,162.6,162.56,3.0768]
[1730667400623,33.74195669,162.63,162.55,3.077]
[1730667401323,33.74195669,162.63,162.53,2.7367]
[1730667401523,11.81195669,162.61,162.53,2.7367]
[1730667401832,11.81195669,162.56,162.48,1.3555]
[1730667402026,11.81195669,162.54,162.44,2.6836]
[1730667402633,3.0776,162.52,162.44,2.6836]
[1730667404219,3.0776,162.52,162.46,3.0786]
[1730667404532,11.81195669,162.54,162.44,2.6836]
[1730667405235,3.0776,162.52,162.47,3.0785]
[1730667407926,3.077,162.55,162.5,3.0778]
[1730667408125,3.44,162.53,162.5,3.0778]
[1730667415534,6.5175,162.53,162.48,3.0781]
[1730667415933,3.44,162.53,162.48,3.0781]
[1730667416132,3.0776,162.52,162.48,3.0781]
[1730667416750,6.5174,162.53,162.48,3.0781]
[1730667417130,6.5174,162.53,162.49,3.0781]
[1730667420251,3.44,162.53,162.5,3.0779]
[1730667421651,3.44,162.53,162.44,2.6836]
[1730667421652,11.81195669,162.59,162.47,11.81195669]
[1730667421840,1.0,162.6,162.49,11.81195669]
[1730667422143,3.44,162.62,162.6,3.0759]
[1730667422337,3.44,162.62,162.54,11.81195669]
[1730667423138,3.44,162.62,162.59,3.0762]
[1730667426141,3.0759,162.61,162.56,3.0768]
[1730667426338,11.81195669,162.61,162.53,2.7983]
[1730667426747,3.0761,162.6,162.55,3.0769]
[1730667426947,11.81195669,162.59,162.53,2.7983]
[1730667427149,3.36,162.58,162.53,2.7983]
[1730667428246,3.36,162.58,162.55,3.0768]
[1730667428556,3.36,162.58,162.53,2.7983]
[1730667429247,3.36,162.58,162.54,3.0771]
[1730667429651,3.36,162.58,162.55,3.0769]
[1730667430155,15.17195669,162.58,162.53,2.7983]
[1730667430344,15.17195669,162.58,162.53,5.8755]
[1730667430345,3.0768,162.57,162.53,5.8755]
[1730667430657,15.17195669,162.58,162.53,2.7983]
[1730667431454,3.36,162.58,162.55,3.077]
[1730667432057,3.36,162.58,162.53,2.7983]
[1730667433240,6.4365,162.58,162.54,3.0772]
[1730667438453,6.4365,162.58,162.53,2.7983]
[1730667438660,15.17195669,162.58,162.5,1.3247]
[1730667438859,11.81195669,162.56,162.5,1.3247]
[1730667439360,11.81195669,162.56,162.51,3.0776]
[1730667439361,3.077,162.55,162.51,3.0776]
[1730667439549,3.36,162.58,162.5,1.3247]
[1730667439747,11.81195669,162.61,162.51,11.81195669]
[1730667439953,3.36,162.62,162.59,3.0762]
[1730667440653,6.4356,162.63,162.59,3.0762]
[1730667441261,3.36,162.63,162.54,11.81195669]
[1730667441463,3.36,162.63,162.55,1.3322]
[1730667441758,3.36,162.63,162.55,2.6298]
[1730667442064,3.36,162.63,162.6,3.0759]
[1730667443454,3.36,162.64,162.62,3.0757]
[1730667444548,3.0748,162.67,162.63,3.0755]
[1730667444763,3.36,162.66,162.57,1.3672]
[1730667445157,3.36,162.66,162.62,3.0756]
[1730667445356,15.17195669,162.66,162.57,1.3672]
[1730667445753,3.0753,162.65,162.6,3.0759]
[1730667447351,3.0753,162.65,162.61,3.0759]
[1730667450366,15.17195669,162.66,162.57,1.3672]
[1730667450569,11.81195669,162.64,162.57,1.3672]
[1730667450972,30.30195669,162.64,162.55,2.6298]
[1730667451163,11.81195669,162.62,162.55,2.6298]
[1730667451358,3.36,162.61,162.55,2.6298]
[1730667451559,3.0766,162.58,162.55,2.6298]
[1730667452277,3.0766,162.57,162.53,3.0773]
[1730667452460,3.36,162.56,162.5,1.3833]
[1730667454377,3.077,162.55,162.51,3.0776]
[1730667455060,3.36,162.56,162.51,3.0776]
[1730667455266,6.4369,162.56,162.51,3.0776]
[1730667456674,6.4369,162.56,162.5,1.3833]
[1730667457378,6.4369,162.56,162.52,3.0775]
[1730667463076,11.81195669,162.55,162.49,3.078]
[1730667463989,3.0775,162.53,162.49,3.078]
[1730667464172,11.81195669,162.55,162.46,1.3804]
[1730667464483,11.81195669,162.55,162.5,3.0779]
[1730667465280,11.81195669,162.55,162.48,3.0782]
[1730667465678,3.0772,162.54,162.46,1.3804]
[1730667465882,3.26,162.57,162.46,13.19235669]
[1730667466186,3.26,162.6,162.51,11.81195669]
[1730667466384,3.26,162.6,162.52,2.686]
[1730667466775,3.26,162.6,162.56,3.0767]
[1730667467082,3.26,162.6,162.53,1.3429]
[1730667467386,13.89750553,162.6,162.55,3.0769]
[1730667469284,6.3361,162.6,162.55,3.0769]
[1730667470280,3.26,162.6,162.53,1.3429]
[1730667470977,6.3362,162.6,162.55,3.077]
[1730667472492,3.26,162.6,162.55,3.077]
[1730667472695,3.0762,162.59,162.55,3.077]
[1730667476587,3.0764,162.59,162.55,3.0769]
[1730667476781,15.3584,162.84,162.58,11.81552947]
[1730667476782,30.29552947,162.7,162.58,11.81552947]
[1730667476983,33.55552947,162.7,162.59,2.6907]
[1730667477281,3.0749,162.66,162.59,2.6907]
[1730667479291,3.0749,162.66,162.61,3.0757]
[1730667479796,3.0749,162.66,162.59,2.6907]
[1730667480884,33.55552947,162.7,162.62,3.0756]
[1730667480885,3.0747,162.67,162.62,3.0756]
[1730667483693,6.3347,162.67,162.62,3.0756]
[1730667488496,3.0749,162.66,162.62,3.0756]
[1730667489392,10.63145811,162.66,162.62,3.0756]
[1730667491989,3.0749,162.66,162.62,3.0756]
[1730667492199,3.26,162.67,162.63,7.55655811]
[1730667492405,3.2,162.68,162.63,7.55655811]
[1730667493103,3.0747,162.68,162.63,10.63195811]
[1730667493309,7.55655811,162.68,162.61,7.55655811]
[1730667493716,10.75655811,162.68,162.61,7.55655811]
[1730667494811,1.4074,162.74,162.64,7.55655811]
[1730667495111,7.55655811,162.72,162.66,7.55655811]
[1730667495508,7.55655811,162.72,162.67,1.3685]
[1730667495696,7.55655811,162.72,162.69,3.0742]
[1730667498511,10.63035811,162.72,162.68,3.0745]
[1730667500104,7.55655811,162.72,162.68,3.0745]
[1730667500706,7.55655811,162.72,162.69,3.0743]
[1730667506007,10.63075811,162.7,162.63,7.55655811]
[1730667506310,7.55655811,162.68,162.63,7.55655811]
[1730667506514,7.55655811,162.66,162.63,3.0754]
[1730667507122,10.63195811,162.64,162.6,3.076]
[1730667507323,21.68,162.68,162.57,7.55655811]
[1730667507324,7.55655811,162.62,162.57,7.55655811]
[1730667507503,7.55655811,162.62,162.55,7.55655811]
[1730667507709,7.55655811,162.62,162.58,3.0763]
[1730667511711,6.2755,162.63,162.58,3.0763]
[1730667511712,7.55655811,162.6,162.58,3.0763]
[1730667512724,7.55655811,162.62,162.56,7.55655811]
[1730667513519,10.75655811,162.63,162.6,3.0759]
[1730667515214,3.0762,162.6,162.55,3.077]
[1730667515420,7.55655811,162.58,162.55,3.077]
[1730667515723,10.75655811,162.58,162.55,3.077]
[1730667516222,10.75655811,162.58,162.55,3.0769]
[1730667517422,3.2,162.58,162.55,3.0769]
[1730667518128,3.2,162.61,162.54,3.0771]
[1730667518428,3.2,162.61,162.55,1.321]
[1730667518815,3.2,162.61,162.58,3.0763]
[1730667520630,6.2759,162.61,162.56,3.0767]
[1730667522530,6.2759,162.61,162.57,3.0766]
[1730667522718,3.2,162.61,162.55,1.321]
[1730667522915,3.0763,162.59,162.49,2.6781]
[1730667523230,11.81936075,162.6,162.5,1.2987]
[1730667523615,3.0763,162.59,162.54,3.0772]
[1730667527414,3.0763,162.59,162.5,1.2987]
[1730667527615,3.2,162.6,162.51,11.81936075]
[1730667528025,3.2,162.6,162.57,3.0766]
[1730667528326,3.2,162.6,162.51,11.81936075]
[1730667528530,3.2,162.6,162.56,3.0767]
[1730667529435,3.2,162.6,162.57,3.0766]
[1730667530925,57.03390404,162.93,162.5,1.2987]
[1730667530926,3.0752,162.65,162.61,3.0759]
[1730667531226,48.45565713,162.66,162.61,3.0759]
[1730667532325,51.53065713,162.66,162.61,3.0759]
[1730667534336,3.0752,162.65,162.61,3.0759]
[1730667534540,48.45565713,162.66,162.57,11.81936075]
[1730667534735,11.81936075,162.72,162.6,11.81936075]
[1730667534935,11.81936075,162.72,162.62,11.81936075]
[1730667535231,3.2,162.71,162.63,3.9486]
[1730667535443,3.0742,162.7,162.63,3.9486]
[1730667535632,3.2,162.71,162.63,3.9486]
[1730667535839,3.2,162.71,162.66,3.0749]
[1730667536941,6.2741,162.71,162.66,3.0749]
[1730667537130,3.2,162.71,162.63,3.9486]
[1730667537838,3.0742,162.7,162.65,3.0751]
[1730667538850,14.89356075,162.7,162.65,3.0751]
[1730667539336,11.81936075,162.7,162.63,1.3617]
[1730667539553,3.0747,162.67,162.63,3.0754]
[1730667539845,3.2,162.66,162.59,2.7836]
[1730667540035,3.2,162.67,162.59,2.7836]
[1730667540237,3.2,162.67,162.64,3.0751]
[1730667540436,3.2,162.67,162.59,2.7836]
[1730667541537,3.2,162.68,162.6,11.81936075]
[1730667541740,11.81936075,162.72,162.6,11.81936075]
[1730667541741,3.2,162.69,162.6,11.81936075]